[Event "Titled Tuesday Blitz October 11 Early 2022"]
[White "Azadaliyev, Jahandar"]
[Black "Zou, Chen"]
[WhiteFideId "13425811"]
[BlackFideId "8610959"]
[WhiteElo "2204"]
[BlackElo "2325"]
[Result "0-1"]
[Round "09"]
[TimeControl "180+1"]
[Date "2022.10.12"]
[WhiteClock "0:00:20"]
[BlackClock "0:00:43"]

1. e4 {[%clk 0:03:00]}  c5 {[%clk 0:02:53]} 2. Nf3 {[%clk 0:03:01]}  d6 {[%clk 0:02:53]} 3. d4 {[%clk 0:03:01]}  cxd4 {[%clk 0:02:54]} 4. Nxd4 {[%clk 0:03:02]}  Nf6 {[%clk 0:02:54]} 5. Nc3 {[%clk 0:03:02]}  a6 {[%clk 0:02:55]} 6. Bg5 {[%clk 0:03:02]}  Nbd7 {[%clk 0:02:53]} 7. Bc4 {[%clk 0:02:57]}  Qb6 {[%clk 0:02:52]} 8. Bb3 {[%clk 0:02:52]}  e6 {[%clk 0:02:43]} 9. O-O {[%clk 0:02:51]}  Be7 {[%clk 0:02:43]} 10. Qd2 {[%clk 0:02:39]}  O-O {[%clk 0:02:42]} 11. Rad1 {[%clk 0:02:38]}  Nc5 {[%clk 0:02:41]} 12. Rfe1 {[%clk 0:02:37]}  Bd7 {[%clk 0:02:40]} 13. h3 {[%clk 0:02:23]}  Rac8 {[%clk 0:02:40]} 14. Kh1 {[%clk 0:02:20]}  Rfd8 {[%clk 0:02:34]} 15. Qe3 {[%clk 0:02:06]}  Be8 {[%clk 0:02:29]} 16. Qg3 {[%clk 0:02:00]}  Nxb3 {[%clk 0:02:25]} 17. axb3 {[%clk 0:02:00]}  Nh5 {[%clk 0:02:14]} 18. Qh4 {[%clk 0:01:57]}  Bxg5 {[%clk 0:02:14]} 19. Qxg5 {[%clk 0:01:58]}  Nf6 {[%clk 0:02:15]} 20. Re3 {[%clk 0:01:57]}  Qc5 {[%clk 0:02:09]} 21. Qg3 {[%clk 0:01:47]}  b5 {[%clk 0:02:06]} 22. Rf3 {[%clk 0:01:41]}  Qe5 {[%clk 0:01:53]} 23. b4 {[%clk 0:01:33]}  Rc4 {[%clk 0:01:50]} 24. Nb3 {[%clk 0:01:21]}  Qxg3 {[%clk 0:01:47]} 25. Rxg3 {[%clk 0:01:22]}  Nxe4 {[%clk 0:01:44]} 26. Nxe4 {[%clk 0:01:17]}  Rxe4 {[%clk 0:01:45]} 27. c3 {[%clk 0:01:15]}  Re2 {[%clk 0:01:39]} 28. Rd2 {[%clk 0:01:16]}  Rxd2 {[%clk 0:01:38]} 29. Nxd2 {[%clk 0:01:17]}  Kf8 {[%clk 0:01:39]} 30. Rd3 {[%clk 0:01:16]}  Ke7 {[%clk 0:01:39]} 31. Nb3 {[%clk 0:01:16]}  Bc6 {[%clk 0:01:38]} 32. Rd1 {[%clk 0:01:17]}  Bd5 {[%clk 0:01:38]} 33. Nd4 {[%clk 0:01:16]}  g6 {[%clk 0:01:35]} 34. Ra1 {[%clk 0:01:13]}  Bb7 {[%clk 0:01:34]} 35. Nb3 {[%clk 0:01:13]}  e5 {[%clk 0:01:25]} 36. f3 {[%clk 0:01:10]}  Ke6 {[%clk 0:01:25]} 37. Kg1 {[%clk 0:01:04]}  f5 {[%clk 0:01:23]} 38. Kf2 {[%clk 0:00:55]}  g5 {[%clk 0:01:22]} 39. Ke3 {[%clk 0:00:52]}  h5 {[%clk 0:01:21]} 40. Rd1 {[%clk 0:00:45]}  Bd5 {[%clk 0:01:19]} 41. Nd2 {[%clk 0:00:43]}  Rc8 {[%clk 0:01:18]} 42. Ra1 {[%clk 0:00:43]}  Bb7 {[%clk 0:01:18]} 43. Nb3 {[%clk 0:00:43]}  f4+ {[%clk 0:01:18]} 44. Ke2 {[%clk 0:00:40]}  g4 {[%clk 0:01:17]} 45. hxg4 {[%clk 0:00:40]}  hxg4 {[%clk 0:01:18]} 46. Rh1 {[%clk 0:00:40]}  gxf3+ {[%clk 0:01:15]} 47. gxf3 {[%clk 0:00:41]}  Rg8 {[%clk 0:01:08]} 48. Rh6+ {[%clk 0:00:40]}  Kd7 {[%clk 0:01:08]} 49. Rh7+ {[%clk 0:00:37]}  Kc8 {[%clk 0:01:08]} 50. Rh6 {[%clk 0:00:34]}  Rg2+ {[%clk 0:01:07]} 51. Kd3 {[%clk 0:00:34]}  Bxf3 {[%clk 0:00:57]} 52. Rxd6 {[%clk 0:00:29]}  e4+ {[%clk 0:00:53]} 53. Kd4 {[%clk 0:00:29]}  e3 {[%clk 0:00:53]} 54. Kc5 {[%clk 0:00:20]}  e2 {[%clk 0:00:46]} 55. Re6 {[%clk 0:00:20]}  Rg1 {[%clk 0:00:43]} 0-1


[Site "https://www.chess.com"]

[Event "Titled Tuesday Blitz October 11 Early 2022"]
[White "Boraso, Alessio"]
[Black "Vargas, Mauricio"]
[WhiteFideId "848077"]
[BlackFideId "4404572"]
[WhiteElo "2286"]
[BlackElo "2025"]
[Result "1-0"]
[Round "09"]
[TimeControl "180+1"]
[Date "2022.10.12"]
[WhiteClock "0:00:03"]
[BlackClock "0:00:09"]

1. e4 {[%clk 0:02:58]}  c6 {[%clk 0:02:18]} 2. Nf3 {[%clk 0:02:56]}  d5 {[%clk 0:02:18]} 3. exd5 {[%clk 0:02:56]}  cxd5 {[%clk 0:02:19]} 4. Ne5 {[%clk 0:02:55]}  d4 {[%clk 0:02:20]} 5. Bc4 {[%clk 0:02:48]}  e6 {[%clk 0:02:13]} 6. O-O {[%clk 0:02:39]}  Nf6 {[%clk 0:02:09]} 7. d3 {[%clk 0:02:38]}  Bd6 {[%clk 0:02:09]} 8. Bf4 {[%clk 0:02:29]}  O-O {[%clk 0:02:08]} 9. Nd2 {[%clk 0:02:28]}  Qc7 {[%clk 0:02:07]} 10. Re1 {[%clk 0:02:21]}  Nh5 {[%clk 0:02:02]} 11. Qxh5 {[%clk 0:02:20]}  f6 {[%clk 0:02:00]} 12. Ndf3 {[%clk 0:01:27]}  fxe5 {[%clk 0:01:58]} 13. Bxe5 {[%clk 0:01:27]}  Rxf3 {[%clk 0:01:51]} 14. Bxd6 {[%clk 0:01:19]}  Qxd6 {[%clk 0:01:46]} 15. Qxf3 {[%clk 0:01:17]}  Nc6 {[%clk 0:01:40]} 16. Qg4 {[%clk 0:01:09]}  Nd8 {[%clk 0:01:34]} 17. Re4 {[%clk 0:01:07]}  a6 {[%clk 0:01:29]} 18. Rae1 {[%clk 0:01:06]}  b5 {[%clk 0:01:29]} 19. Rxd4 {[%clk 0:00:57]}  Qe7 {[%clk 0:01:21]} 20. Rxd8+ {[%clk 0:00:54]}  Qxd8 {[%clk 0:01:20]} 21. Bxe6+ {[%clk 0:00:55]}  Kh8 {[%clk 0:01:14]} 22. Bxc8 {[%clk 0:00:54]}  Rxc8 {[%clk 0:01:14]} 23. c3 {[%clk 0:00:53]}  h6 {[%clk 0:01:14]} 24. d4 {[%clk 0:00:53]}  Rb8 {[%clk 0:01:01]} 25. a3 {[%clk 0:00:52]}  a5 {[%clk 0:00:53]} 26. h3 {[%clk 0:00:52]}  b4 {[%clk 0:00:53]} 27. axb4 {[%clk 0:00:53]}  axb4 {[%clk 0:00:53]} 28. Qg6 {[%clk 0:00:50]}  bxc3 {[%clk 0:00:52]} 29. bxc3 {[%clk 0:00:50]}  Qf8 {[%clk 0:00:51]} 30. Re3 {[%clk 0:00:38]}  Ra8 {[%clk 0:00:45]} 31. Rf3 {[%clk 0:00:33]}  Qb8 {[%clk 0:00:43]} 32. Rg3 {[%clk 0:00:24]}  Ra1+ {[%clk 0:00:42]} 33. Kh2 {[%clk 0:00:24]}  Qc7 {[%clk 0:00:35]} 34. d5 {[%clk 0:00:21]}  Ra7 {[%clk 0:00:17]} 35. Qe8+ {[%clk 0:00:16]}  Kh7 {[%clk 0:00:16]} 36. Qe4+ {[%clk 0:00:17]}  Kh8 {[%clk 0:00:16]} 37. c4 {[%clk 0:00:18]}  Ra3 {[%clk 0:00:14]} 38. Qe8+ {[%clk 0:00:17]}  Kh7 {[%clk 0:00:14]} 39. Qg6+ {[%clk 0:00:18]}  Kh8 {[%clk 0:00:14]} 40. d6 {[%clk 0:00:17]}  Rxg3 {[%clk 0:00:14]} 41. dxc7 {[%clk 0:00:06]}  Rxg6 {[%clk 0:00:12]} 42. c8=Q+ {[%clk 0:00:07]}  Kh7 {[%clk 0:00:12]} 43. Qf5 {[%clk 0:00:08]}  h5 {[%clk 0:00:11]} 44. g4 {[%clk 0:00:03]}  Kh6 {[%clk 0:00:09]} 45. Qxh5# {[%clk 0:00:03]} 1-0


[Site "https://www.chess.com"]

[Event "Titled Tuesday Blitz October 11 Early 2022"]
[White "Chigaev, Maksim"]
[Black "Piesik, Piotr"]
[WhiteFideId "4108116"]
[BlackFideId "1136194"]
[WhiteElo "2537"]
[BlackElo "2323"]
[Result "1-0"]
[Round "09"]
[TimeControl "180+1"]
[Date "2022.10.11"]
[WhiteClock "0:00:10"]
[BlackClock "0:00:05"]

1. d4 {[%clk 0:02:59]}  c5 {[%clk 0:02:56]} 2. d5 {[%clk 0:02:59]}  e5 {[%clk 0:02:56]} 3. Nc3 {[%clk 0:02:55]}  d6 {[%clk 0:02:56]} 4. e4 {[%clk 0:02:55]}  Be7 {[%clk 0:02:57]} 5. Bb5+ {[%clk 0:02:53]}  Nd7 {[%clk 0:02:57]} 6. a4 {[%clk 0:02:54]}  Bg5 {[%clk 0:02:57]} 7. Nf3 {[%clk 0:02:50]}  Bxc1 {[%clk 0:02:57]} 8. Qxc1 {[%clk 0:02:51]}  Ne7 {[%clk 0:02:57]} 9. a5 {[%clk 0:02:51]}  a6 {[%clk 0:02:56]} 10. Bxd7+ {[%clk 0:02:51]}  Bxd7 {[%clk 0:02:56]} 11. Nd2 {[%clk 0:02:51]}  Bb5 {[%clk 0:02:51]} 12. Nd1 {[%clk 0:02:49]}  O-O {[%clk 0:02:49]} 13. c4 {[%clk 0:02:46]}  Bd7 {[%clk 0:02:49]} 14. O-O {[%clk 0:02:46]}  f5 {[%clk 0:02:49]} 15. f3 {[%clk 0:02:43]}  Ng6 {[%clk 0:02:45]} 16. Ne3 {[%clk 0:02:31]}  Nf4 {[%clk 0:02:43]} 17. Qe1 {[%clk 0:02:23]}  Qg5 {[%clk 0:02:33]} 18. Kh1 {[%clk 0:02:19]}  Rf6 {[%clk 0:02:09]} 19. Ra3 {[%clk 0:02:09]}  Rh6 {[%clk 0:01:59]} 20. exf5 {[%clk 0:01:16]}  Bxf5 {[%clk 0:01:56]} 21. g3 {[%clk 0:01:09]}  Nd3 {[%clk 0:00:33]} 22. Qe2 {[%clk 0:01:06]}  Nb4 {[%clk 0:00:33]} 23. Nxf5 {[%clk 0:00:53]}  Qxf5 {[%clk 0:00:34]} 24. Ne4 {[%clk 0:00:54]}  Rf8 {[%clk 0:00:28]} 25. Kg1 {[%clk 0:00:50]}  Rg6 {[%clk 0:00:27]} 26. Raa1 {[%clk 0:00:47]}  h5 {[%clk 0:00:27]} 27. Kh1 {[%clk 0:00:43]}  h4 {[%clk 0:00:26]} 28. g4 {[%clk 0:00:38]}  Qf4 {[%clk 0:00:26]} 29. h3 {[%clk 0:00:38]}  Kf7 {[%clk 0:00:22]} 30. Ra3 {[%clk 0:00:32]}  Ke7 {[%clk 0:00:22]} 31. Rc3 {[%clk 0:00:31]}  Rh6 {[%clk 0:00:21]} 32. Rb3 {[%clk 0:00:26]}  Rhh8 {[%clk 0:00:19]} 33. Kg2 {[%clk 0:00:24]}  Rf7 {[%clk 0:00:19]} 34. Qe1 {[%clk 0:00:18]}  g5 {[%clk 0:00:17]} 35. Rxb4 {[%clk 0:00:17]}  cxb4 {[%clk 0:00:17]} 36. Qxb4 {[%clk 0:00:18]}  Rd8 {[%clk 0:00:17]} 37. Qxb7+ {[%clk 0:00:11]}  Rd7 {[%clk 0:00:17]} 38. Qxa6 {[%clk 0:00:10]}  Qe3 {[%clk 0:00:17]} 39. Qb6 {[%clk 0:00:11]}  Qe2+ {[%clk 0:00:13]} 40. Qf2 {[%clk 0:00:09]}  Qxc4 {[%clk 0:00:14]} 41. Nxg5 {[%clk 0:00:09]}  Rf4 {[%clk 0:00:13]} 42. Qxh4 {[%clk 0:00:09]}  Qc2+ {[%clk 0:00:09]} 43. Rf2 {[%clk 0:00:10]}  Qd3 {[%clk 0:00:09]} 44. Ne6+ {[%clk 0:00:10]}  Kf7 {[%clk 0:00:09]} 45. Nxf4 {[%clk 0:00:10]}  exf4 {[%clk 0:00:09]} 46. Qg5 {[%clk 0:00:10]}  Qd4 {[%clk 0:00:08]} 47. Qf5+ {[%clk 0:00:10]}  Ke7 {[%clk 0:00:06]} 48. a6 {[%clk 0:00:10]}  Rc7 {[%clk 0:00:05]} 49. Re2+ {[%clk 0:00:10]}  Kd8 {[%clk 0:00:05]} 50. Qf8+ {[%clk 0:00:10]} 1-0


[Site "https://www.chess.com"]

[Event "Titled Tuesday Blitz October 11 Early 2022"]
[White "D`Arruda, Ricardo D."]
[Black "Broca Jimenez, Fernando"]
[WhiteFideId "100692"]
[BlackFideId "5104742"]
[WhiteElo "2420"]
[BlackElo "2062"]
[Result "1-0"]
[Round "09"]
[TimeControl "180+1"]
[Date "2022.10.12"]
[WhiteClock "0:00:45"]
[BlackClock "0:00:03"]

1. d4 {[%clk 0:02:42]}  Nf6 {[%clk 0:02:54]} 2. Nf3 {[%clk 0:02:42]}  g6 {[%clk 0:02:49]} 3. Nc3 {[%clk 0:02:41]}  Bg7 {[%clk 0:02:47]} 4. e4 {[%clk 0:02:41]}  d6 {[%clk 0:02:47]} 5. Bg5 {[%clk 0:02:39]}  O-O {[%clk 0:02:46]} 6. Qd2 {[%clk 0:02:39]}  Bg4 {[%clk 0:02:11]} 7. Be2 {[%clk 0:02:36]}  c5 {[%clk 0:02:10]} 8. dxc5 {[%clk 0:02:29]}  dxc5 {[%clk 0:02:10]} 9. Qxd8 {[%clk 0:02:29]}  Rxd8 {[%clk 0:02:11]} 10. e5 {[%clk 0:02:29]}  Nfd7 {[%clk 0:01:57]} 11. O-O-O {[%clk 0:02:21]}  Nc6 {[%clk 0:01:55]} 12. h3 {[%clk 0:02:15]}  Bxf3 {[%clk 0:01:49]} 13. Bxf3 {[%clk 0:02:16]}  Ndxe5 {[%clk 0:01:49]} 14. Be2 {[%clk 0:01:58]}  h6 {[%clk 0:01:26]} 15. Be3 {[%clk 0:01:51]}  Nd4 {[%clk 0:01:10]} 16. Bf1 {[%clk 0:01:49]}  Nec6 {[%clk 0:01:04]} 17. Bc4 {[%clk 0:01:44]}  e6 {[%clk 0:00:47]} 18. Rhe1 {[%clk 0:01:42]}  Na5 {[%clk 0:00:31]} 19. Bf1 {[%clk 0:01:39]}  a6 {[%clk 0:00:28]} 20. Na4 {[%clk 0:01:33]}  Rac8 {[%clk 0:00:19]} 21. c3 {[%clk 0:01:30]}  Nf5 {[%clk 0:00:17]} 22. Rxd8+ {[%clk 0:01:28]}  Rxd8 {[%clk 0:00:17]} 23. Bxc5 {[%clk 0:01:28]}  Nc6 {[%clk 0:00:17]} 24. Bb6 {[%clk 0:01:14]}  Rd7 {[%clk 0:00:17]} 25. g4 {[%clk 0:01:13]}  Nd6 {[%clk 0:00:15]} 26. Nc5 {[%clk 0:01:08]}  Re7 {[%clk 0:00:14]} 27. Rd1 {[%clk 0:01:04]}  Be5 {[%clk 0:00:07]} 28. Nd3 {[%clk 0:00:56]}  Bh2 {[%clk 0:00:04]} 29. Bc5 {[%clk 0:00:52]}  Rd7 {[%clk 0:00:04]} 30. Be3 {[%clk 0:00:49]}  Nc4 {[%clk 0:00:03]} 31. Bxh6 {[%clk 0:00:45]} 1-0


[Site "https://www.chess.com"]

[Event "Titled Tuesday Blitz October 11 Early 2022"]
[White "De Souza, Cristiano Gomes"]
[Black "Wartiovaara, Oliver"]
[WhiteFideId "2151758"]
[BlackFideId "513024"]
[WhiteElo "2068"]
[BlackElo "2197"]
[Result "1-0"]
[Round "09"]
[TimeControl "180+1"]
[Date "2022.10.12"]
[WhiteClock "0:00:53"]
[BlackClock "0:00:09"]

1. d4 {[%clk 0:03:00]}  c5 {[%clk 0:02:18]} 2. d5 {[%clk 0:02:59]}  d6 {[%clk 0:02:14]} 3. c4 {[%clk 0:03:00]}  b5 {[%clk 0:02:14]} 4. cxb5 {[%clk 0:02:59]}  a6 {[%clk 0:02:15]} 5. bxa6 {[%clk 0:03:00]}  Bxa6 {[%clk 0:02:15]} 6. Nf3 {[%clk 0:03:00]}  Nf6 {[%clk 0:02:14]} 7. g3 {[%clk 0:03:00]}  g6 {[%clk 0:02:14]} 8. Bg2 {[%clk 0:02:59]}  Bg7 {[%clk 0:02:15]} 9. Nc3 {[%clk 0:03:00]}  O-O {[%clk 0:02:15]} 10. Rb1 {[%clk 0:03:00]}  Nbd7 {[%clk 0:02:15]} 11. b3 {[%clk 0:02:59]}  Qa5 {[%clk 0:02:07]} 12. Bd2 {[%clk 0:02:58]}  Qa3 {[%clk 0:02:06]} 13. O-O {[%clk 0:02:55]}  Rfb8 {[%clk 0:02:05]} 14. Qc2 {[%clk 0:02:46]}  Ng4 {[%clk 0:02:01]} 15. h3 {[%clk 0:02:43]}  Nge5 {[%clk 0:02:01]} 16. Nxe5 {[%clk 0:02:43]}  Nxe5 {[%clk 0:02:02]} 17. f4 {[%clk 0:02:38]}  Nd7 {[%clk 0:02:01]} 18. Kh2 {[%clk 0:02:38]}  c4 {[%clk 0:01:42]} 19. Rfe1 {[%clk 0:02:31]}  cxb3 {[%clk 0:01:41]} 20. Rxb3 {[%clk 0:02:31]}  Rxb3 {[%clk 0:01:40]} 21. axb3 {[%clk 0:02:31]}  Nc5 {[%clk 0:01:40]} 22. Rb1 {[%clk 0:02:23]}  Bc8 {[%clk 0:01:38]} 23. e4 {[%clk 0:02:19]}  Rb8 {[%clk 0:01:28]} 24. Bf1 {[%clk 0:02:03]}  f5 {[%clk 0:01:20]} 25. Nb5 {[%clk 0:01:41]}  Qa8 {[%clk 0:00:59]} 26. e5 {[%clk 0:01:38]}  Bd7 {[%clk 0:00:49]} 27. Nd4 {[%clk 0:01:25]}  Ne4 {[%clk 0:00:44]} 28. Nc6 {[%clk 0:01:20]}  Bxc6 {[%clk 0:00:39]} 29. dxc6 {[%clk 0:01:19]}  Rc8 {[%clk 0:00:33]} 30. Bc4+ {[%clk 0:01:17]}  Kf8 {[%clk 0:00:31]} 31. Bd5 {[%clk 0:01:15]}  dxe5 {[%clk 0:00:29]} 32. Bb4 {[%clk 0:01:08]}  exf4 {[%clk 0:00:24]} 33. gxf4 {[%clk 0:01:07]}  Nd6 {[%clk 0:00:16]} 34. Bxd6 {[%clk 0:01:01]}  exd6 {[%clk 0:00:17]} 35. b4 {[%clk 0:01:01]}  Bd4 {[%clk 0:00:14]} 36. b5 {[%clk 0:01:00]}  Qa7 {[%clk 0:00:13]} 37. Qe2 {[%clk 0:00:55]}  Qe7 {[%clk 0:00:08]} 38. Qxe7+ {[%clk 0:00:53]}  Kxe7 {[%clk 0:00:09]} 39. b6 {[%clk 0:00:53]} 1-0


[Site "https://www.chess.com"]

[Event "Titled Tuesday Blitz October 11 Early 2022"]
[White "Donchenko, Alexander"]
[Black "Dardha, Daniel"]
[WhiteFideId "24603295"]
[BlackFideId "240990"]
[WhiteElo "2572"]
[BlackElo "2528"]
[Result "0-1"]
[Round "09"]
[TimeControl "180+1"]
[Date "2022.10.11"]
[WhiteClock "0:00:04"]
[BlackClock "0:00:03"]

1. Nf3 {[%clk 0:03:00]}  d5 {[%clk 0:02:59]} 2. g3 {[%clk 0:03:01]}  b6 {[%clk 0:02:56]} 3. Bg2 {[%clk 0:03:01]}  Bb7 {[%clk 0:02:57]} 4. O-O {[%clk 0:03:01]}  Nf6 {[%clk 0:02:56]} 5. c4 {[%clk 0:03:01]}  dxc4 {[%clk 0:02:56]} 6. Na3 {[%clk 0:03:01]}  e6 {[%clk 0:02:45]} 7. Nxc4 {[%clk 0:03:01]}  Be7 {[%clk 0:02:43]} 8. d4 {[%clk 0:03:00]}  O-O {[%clk 0:02:42]} 9. Qc2 {[%clk 0:03:00]}  Nbd7 {[%clk 0:02:37]} 10. Rd1 {[%clk 0:02:53]}  Qc8 {[%clk 0:02:28]} 11. Bf4 {[%clk 0:02:48]}  c5 {[%clk 0:02:24]} 12. Bd6 {[%clk 0:02:40]}  Be4 {[%clk 0:02:13]} 13. Qa4 {[%clk 0:02:34]}  Bxd6 {[%clk 0:01:51]} 14. Nxd6 {[%clk 0:02:35]}  Qc6 {[%clk 0:01:51]} 15. Qxc6 {[%clk 0:02:28]}  Bxc6 {[%clk 0:01:52]} 16. dxc5 {[%clk 0:02:23]}  bxc5 {[%clk 0:01:52]} 17. Rac1 {[%clk 0:02:20]}  Rfb8 {[%clk 0:01:52]} 18. Rd2 {[%clk 0:02:09]}  h6 {[%clk 0:01:41]} 19. Ne1 {[%clk 0:02:01]}  Bxg2 {[%clk 0:01:35]} 20. Kxg2 {[%clk 0:02:02]}  a5 {[%clk 0:01:32]} 21. Nd3 {[%clk 0:02:01]}  Rb6 {[%clk 0:01:12]} 22. Nc4 {[%clk 0:01:49]}  Rb7 {[%clk 0:01:08]} 23. Nce5 {[%clk 0:01:45]}  Rab8 {[%clk 0:00:56]} 24. Nc6 {[%clk 0:01:30]}  Ra8 {[%clk 0:00:46]} 25. Rdc2 {[%clk 0:01:30]}  Rb6 {[%clk 0:00:37]} 26. Nce5 {[%clk 0:01:28]}  Nxe5 {[%clk 0:00:32]} 27. Nxe5 {[%clk 0:01:29]}  a4 {[%clk 0:00:33]} 28. Kf3 {[%clk 0:01:17]}  Ra7 {[%clk 0:00:24]} 29. e3 {[%clk 0:01:10]}  g5 {[%clk 0:00:22]} 30. Nc4 {[%clk 0:01:08]}  Rb4 {[%clk 0:00:21]} 31. a3 {[%clk 0:01:02]}  Rb3 {[%clk 0:00:20]} 32. Nd2 {[%clk 0:00:56]}  Rd3 {[%clk 0:00:16]} 33. Nb1 {[%clk 0:00:55]}  g4+ {[%clk 0:00:12]} 34. Ke2 {[%clk 0:00:54]}  Rb3 {[%clk 0:00:13]} 35. Nd2 {[%clk 0:00:44]}  Rb8 {[%clk 0:00:11]} 36. Nc4 {[%clk 0:00:45]}  Kg7 {[%clk 0:00:11]} 37. h3 {[%clk 0:00:44]}  h5 {[%clk 0:00:09]} 38. hxg4 {[%clk 0:00:45]}  hxg4 {[%clk 0:00:10]} 39. Ne5 {[%clk 0:00:45]}  Rab7 {[%clk 0:00:08]} 40. Nd3 {[%clk 0:00:45]}  Ne4 {[%clk 0:00:06]} 41. Rc4 {[%clk 0:00:45]}  f5 {[%clk 0:00:05]} 42. R1c2 {[%clk 0:00:43]}  Rh8 {[%clk 0:00:03]} 43. Nxc5 {[%clk 0:00:42]}  Nxc5 {[%clk 0:00:04]} 44. Rxc5 {[%clk 0:00:43]}  Kf6 {[%clk 0:00:04]} 45. Rc7 {[%clk 0:00:28]}  Rb6 {[%clk 0:00:03]} 46. R7c6 {[%clk 0:00:25]}  Rb7 {[%clk 0:00:04]} 47. Kd2 {[%clk 0:00:22]}  Rh2 {[%clk 0:00:03]} 48. Kc3 {[%clk 0:00:20]}  Rb3+ {[%clk 0:00:03]} 49. Kc4 {[%clk 0:00:21]}  Rh8 {[%clk 0:00:04]} 50. Kc5 {[%clk 0:00:02]}  Rhb8 {[%clk 0:00:04]} 51. Kd6 {[%clk 0:00:02]}  R3b5 {[%clk 0:00:03]} 52. Kd7 {[%clk 0:00:02]}  R5b7+ {[%clk 0:00:03]} 53. Kd6 {[%clk 0:00:02]}  Rd8+ {[%clk 0:00:02]} 54. Kc5 {[%clk 0:00:02]}  Rd5+ {[%clk 0:00:03]} 55. Kc4 {[%clk 0:00:02]}  Ke5 {[%clk 0:00:04]} 56. Kc3 {[%clk 0:00:02]}  Rb3+ {[%clk 0:00:03]} 57. Kc4 {[%clk 0:00:03]}  Rb7 {[%clk 0:00:02]} 58. Re2 {[%clk 0:00:03]}  Rb3 {[%clk 0:00:02]} 59. Rc5 {[%clk 0:00:02]}  Ke4 {[%clk 0:00:01]} 60. Rxd5 {[%clk 0:00:02]}  exd5+ {[%clk 0:00:02]} 61. Kc5 {[%clk 0:00:03]}  Kd3 {[%clk 0:00:02]} 62. Re1 {[%clk 0:00:03]}  Rxb2 {[%clk 0:00:03]} 63. Rd1+ {[%clk 0:00:02]}  Ke4 {[%clk 0:00:02]} 64. Rd4+ {[%clk 0:00:03]}  Kf3 {[%clk 0:00:02]} 65. Rf4+ {[%clk 0:00:03]}  Ke2 {[%clk 0:00:01]} 66. Rxf5 {[%clk 0:00:03]}  Rb3 {[%clk 0:00:01]} 67. Kxd5 {[%clk 0:00:04]}  Rxa3 {[%clk 0:00:02]} 68. e4 {[%clk 0:00:04]}  Rf3 {[%clk 0:00:02]} 69. Rxf3 {[%clk 0:00:02]}  Kxf3 {[%clk 0:00:01]} 70. e5 {[%clk 0:00:03]}  a3 {[%clk 0:00:02]} 71. e6 {[%clk 0:00:04]}  a2 {[%clk 0:00:03]} 72. e7 {[%clk 0:00:05]}  a1=Q {[%clk 0:00:03]} 73. e8=Q {[%clk 0:00:05]}  Qa2+ {[%clk 0:00:03]} 74. Kd6 {[%clk 0:00:05]}  Qxf2 {[%clk 0:00:03]} 75. Qe5 {[%clk 0:00:04]}  Qxg3 {[%clk 0:00:03]} 0-1


[Site "https://www.chess.com"]

[Event "Titled Tuesday Blitz October 11 Early 2022"]
[White "Fajdetic, Hrvoje"]
[Black "Dwilewicz, Katarzyna"]
[WhiteFideId "14501945"]
[BlackFideId "1148486"]
[WhiteElo "2172"]
[BlackElo "2023"]
[Result "0-1"]
[Round "09"]
[TimeControl "180+1"]
[Date "2022.10.12"]
[WhiteClock "0:00:01"]
[BlackClock "0:00:25"]

1. b3 {[%clk 0:02:57]}  e5 {[%clk 0:02:59]} 2. Bb2 {[%clk 0:02:57]}  Nc6 {[%clk 0:02:59]} 3. e3 {[%clk 0:02:57]}  Nf6 {[%clk 0:02:59]} 4. Ne2 {[%clk 0:02:58]}  Be7 {[%clk 0:02:59]} 5. d4 {[%clk 0:02:58]}  exd4 {[%clk 0:02:59]} 6. exd4 {[%clk 0:02:59]}  d5 {[%clk 0:02:58]} 7. Nd2 {[%clk 0:02:55]}  O-O {[%clk 0:02:59]} 8. g3 {[%clk 0:02:52]}  Re8 {[%clk 0:02:54]} 9. Bg2 {[%clk 0:02:52]}  Bg4 {[%clk 0:02:53]} 10. f3 {[%clk 0:02:52]}  Bf5 {[%clk 0:02:49]} 11. a3 {[%clk 0:02:48]}  Qd7 {[%clk 0:02:47]} 12. O-O {[%clk 0:02:34]}  Bd6 {[%clk 0:02:45]} 13. c4 {[%clk 0:02:28]}  Bd3 {[%clk 0:02:35]} 14. Rf2 {[%clk 0:02:22]}  b6 {[%clk 0:02:24]} 15. Rc1 {[%clk 0:02:04]}  Bg6 {[%clk 0:02:12]} 16. c5 {[%clk 0:01:49]}  bxc5 {[%clk 0:02:08]} 17. dxc5 {[%clk 0:01:50]}  Be5 {[%clk 0:02:08]} 18. Bxe5 {[%clk 0:01:49]}  Nxe5 {[%clk 0:02:08]} 19. Nf4 {[%clk 0:01:47]}  Nd3 {[%clk 0:02:03]} 20. Nxd3 {[%clk 0:01:46]}  Bxd3 {[%clk 0:02:03]} 21. Nf1 {[%clk 0:01:41]}  Bg6 {[%clk 0:01:54]} 22. Qd4 {[%clk 0:01:15]}  c6 {[%clk 0:01:54]} 23. b4 {[%clk 0:01:14]}  a5 {[%clk 0:01:53]} 24. Ne3 {[%clk 0:01:01]}  axb4 {[%clk 0:01:47]} 25. axb4 {[%clk 0:01:02]}  Ra3 {[%clk 0:01:43]} 26. Nf1 {[%clk 0:00:50]}  Qb7 {[%clk 0:01:37]} 27. Rb2 {[%clk 0:00:48]}  Rd3 {[%clk 0:01:32]} 28. Qf4 {[%clk 0:00:42]}  Qb5 {[%clk 0:01:23]} 29. g4 {[%clk 0:00:33]}  h6 {[%clk 0:01:21]} 30. Ng3 {[%clk 0:00:32]}  Rde3 {[%clk 0:01:07]} 31. Bf1 {[%clk 0:00:20]}  Qa4 {[%clk 0:01:01]} 32. b5 {[%clk 0:00:18]}  Qxf4 {[%clk 0:00:59]} 33. bxc6 {[%clk 0:00:16]}  Qxf3 {[%clk 0:00:57]} 34. c7 {[%clk 0:00:15]}  Qxg4 {[%clk 0:00:56]} 35. Rb8 {[%clk 0:00:14]}  Nh5 {[%clk 0:00:51]} 36. Bg2 {[%clk 0:00:12]}  Nxg3 {[%clk 0:00:49]} 37. hxg3 {[%clk 0:00:12]}  Rc8 {[%clk 0:00:39]} 38. c6 {[%clk 0:00:06]}  Ree8 {[%clk 0:00:38]} 39. Rd1 {[%clk 0:00:04]}  Qxg3 {[%clk 0:00:35]} 40. Rxd5 {[%clk 0:00:02]}  Qxc7 {[%clk 0:00:35]} 41. Rxc8 {[%clk 0:00:01]}  Rxc8 {[%clk 0:00:34]} 42. Rd7 {[%clk 0:00:02]}  Qb6+ {[%clk 0:00:32]} 43. Kh2 {[%clk 0:00:02]}  Qf2 {[%clk 0:00:31]} 44. Kh1 {[%clk 0:00:01]}  Qe1+ {[%clk 0:00:24]} 45. Kh2 {[%clk 0:00:01]}  Be4 {[%clk 0:00:25]} 0-1


[Site "https://www.chess.com"]